Workbook

Sheet marketing_2023
A1: Konto Nr | B1: Betrieb Nr | C1: Summe | D1: Wert1 | E1: Wert2 | F1: Wert3 | G1: Wert4 | H1: Wert5 | I1: Wert6 | J1: Wert7 | K1: Wert8 | L1: Wert9 | M1: Wert10 | N1: Wert11 | O1: Wert12 | Q1: Summe2 | R1: Diff
A2: 48001 | B2: 10 | C2: 18000 | D2: 3000 | E2: 0 | F2: 5500 | G2: 5500 | H2: 0 | I2: 0 | J2: 0 | K2: 0 | L2: 500 | M2: 2500 | N2: 1000 | O2: 0 | Q2: =SUM(D2:O2) -> 18000 | R2: =P2-Q2 -> -18000
A3: 48005 | B3: 81 | C3: 23898 | D3: 314 | E3: 544 | F3: 3964 | G3: 7044 | H3: 844 | I3: 544 | J3: 1344 | K3: 2464 | L3: 3844 | M3: 2364 | N3: 314 | O3: 314 | Q3: =SUM(D3:O3) -> 23898 | R3: =P3-Q3 -> -23898
A4: 48010 | B4: 10 | C4: 1820 | D4: 0 | E4: 0 | F4: 1320 | G4: 0 | H4: 0 | I4: 0 | J4: 0 | K4: 0 | L4: 500 | M4: 0 | N4: 0 | O4: 0 | Q4: =SUM(D4:O4) -> 1820 | R4: =P4-Q4 -> -1820
A5: 48010 | B5: 30 | C5: 300 | D5: 0 | E5: 0 | F5: 180 | G5: 120 | H5: 0 | I5: 0 | J5: 0 | K5: 0 | L5: 0 | M5: 0 | N5: 0 | O5: 0 | Q5: =SUM(D5:O5) -> 300 | R5: =P5-Q5 -> -300
A6: 48010 | B6: 40 | C6: 1500 | D6: 0 | E6: 0 | F6: 1500 | G6: 0 | H6: 0 | I6: 0 | J6: 0 | K6: 0 | L6: 0 | M6: 0 | N6: 0 | O6: 0 | Q6: =SUM(D6:O6) -> 1500 | R6: =P6-Q6 -> -1500
A7: 48010 | B7: 50 | C7: 780 | D7: 0 | E7: 0 | F7: 780 | G7: 0 | H7: 0 | I7: 0 | J7: 0 | K7: 0 | L7: 0 | M7: 0 | N7: 0 | O7: 0 | Q7: =SUM(D7:O7) -> 780 | R7: =P7-Q7 -> -780
A8: 48010 | B8: 55 | C8: 0 | D8: 0 | E8: 0 | F8: 0 | G8: 0 | H8: 0 | I8: 0 | J8: 0 | K8: 0 | L8: 0 | M8: 0 | N8: 0 | O8: 0 | Q8: =SUM(D8:O8) -> 0 | R8: =P8-Q8 -> 0
A9: 48010 | B9: 82 | C9: 1140 | D9: 0 | E9: 0 | F9: 1140 | G9: 0 | H9: 0 | I9: 0 | J9: 0 | K9: 0 | L9: 0 | M9: 0 | N9: 0 | O9: 0 | Q9: =SUM(D9:O9) -> 1140 | R9: =P9-Q9 -> -1140
A10: 48011 | B10: 81 | C10: 1000 | D10: 0 | E10: 0 | F10: 1000 | G10: 0 | H10: 0 | I10: 0 | J10: 0 | K10: 0 | L10: 0 | M10: 0 | N10: 0 | O10: 0 | Q10: =SUM(D10:O10) -> 1000 | R10: =P10-Q10 -> -1000
A11: 48015 | B11: 10 | C11: 103272.5 | D11: 6986.666667 | E11: 7076.666667 | F11: 10516.66667 | G11: 7611.666667 | H11: 11526.66667 | I11: 11389.16667 | J11: 8189.166667 | K11: 7389.166667 | L11: 8976.666667 | M11: 8156.666667 | N11: 8826.666667 | O11: 6626.666667 | Q11: =SUM(D11:O11) -> 103272.5 | R11: =P11-Q11 -> -103272.5
A12: 48015 | B12: 30 | C12: 11777.2 | D12: 670.6 | E12: 670.6 | F12: 1420.6 | G12: 1220.6 | H12: 1320.6 | I12: 1220.6 | J12: 1220.6 | K12: 670.6 | L12: 790.6 | M12: 730.6 | N12: 1170.6 | O12: 670.6 | Q12: =SUM(D12:O12) -> 11777.2 | R12: =P12-Q12 -> -11777.2
A13: 48015 | B13: 40 | C13: 56457.5 | D13: 4033.333333 | E13: 4033.333333 | F13: 7783.333333 | G13: 4033.333333 | H13: 4233.333333 | I13: 4445.833333 | J13: 4445.833333 | K13: 4445.833333 | L13: 4033.333333 | M13: 4533.333333 | N13: 6403.333333 | O13: 4033.333333 | Q13: =SUM(D13:O13) -> 56457.5 | R13: =P13-Q13 -> -56457.5
A14: 48015 | B14: 50 | C14: 42140 | D14: 1798.333333 | E14: 2048.333333 | F14: 5548.333333 | G14: 1798.333333 | H14: 3298.333333 | I14: 9298.333333 | J14: 1798.333333 | K14: 1798.333333 | L14: 2298.333333 | M14: 8058.333333 | N14: 1798.333333 | O14: 2598.333333 | Q14: =SUM(D14:O14) -> 42140 | R14: =P14-Q14 -> -42140
A15: 48015 | B15: 55 | C15: 21665 | D15: 1513.333333 | E15: 1813.333333 | F15: 2563.333333 | G15: 1513.333333 | H15: 1513.333333 | I15: 2413.333333 | J15: 1513.333333 | K15: 1813.333333 | L15: 1513.333333 | M15: 1653.333333 | N15: 2328.333333 | O15: 1513.333333 | Q15: =SUM(D15:O15) -> 21665 | R15: =P15-Q15 -> -21665
A16: 48015 | B16: 82 | C16: 79420 | D16: 4650 | E16: 7650 | F16: 9150 | G16: 4650 | H16: 5150 | I16: 5270 | J16: 4650 | K16: 4650 | L16: 10650 | M16: 11500 | N16: 6800 | O16: 4650 | Q16: =SUM(D16:O16) -> 79420 | R16: =P16-Q16 -> -79420
A17: 48016 | B17: 10 | C17: 15491 | D17: 705.8333333 | E17: 705.8333333 | F17: 1255.833333 | G17: 705.8333333 | H17: 705.8333333 | I17: 1365.833333 | J17: 969.8333333 | K17: 1750.833333 | L17: 705.8333333 | M17: 4657.833333 | N17: 1255.833333 | O17: 705.8333333 | Q17: =SUM(D17:O17) -> 15491 | R17: =P17-Q17 -> -15491
A18: 48016 | B18: 30 | C18: 1648.5 | D18: 96.25 | E18: 96.25 | F18: 171.25 | G18: 96.25 | H18: 96.25 | I18: 186.25 | J18: 132.25 | K18: 238.75 | L18: 96.25 | M18: 171.25 | N18: 171.25 | O18: 96.25 | Q18: =SUM(D18:O18) -> 1648.5 | R18: =P18-Q18 -> -1648.5
A19: 48016 | B19: 40 | C19: 13737.5 | D19: 802.0833333 | E19: 802.0833333 | F19: 1427.083333 | G19: 802.0833333 | H19: 802.0833333 | I19: 1552.083333 | J19: 1102.083333 | K19: 1989.583333 | L19: 802.0833333 | M19: 1427.083333 | N19: 1427.083333 | O19: 802.0833333 | Q19: =SUM(D19:O19) -> 13737.5 | R19: =P19-Q19 -> -13737.5
A20: 48016 | B20: 50 | C20: 8343.5 | D20: 417.0833333 | E20: 417.0833333 | F20: 742.0833333 | G20: 417.0833333 | H20: 417.0833333 | I20: 807.0833333 | J20: 573.0833333 | K20: 1034.583333 | L20: 417.0833333 | M20: 1942.083333 | N20: 742.0833333 | O20: 417.0833333 | Q20: =SUM(D20:O20) -> 8343.5 | R20: =P20-Q20 -> -8343.5
A21: 48016 | B21: 55 | C21: 4096.5 | D21: 224.5833333 | E21: 224.5833333 | F21: 399.5833333 | G21: 224.5833333 | H21: 224.5833333 | I21: 434.5833333 | J21: 308.5833333 | K21: 557.0833333 | L21: 224.5833333 | M21: 399.5833333 | N21: 649.5833333 | O21: 224.5833333 | Q21: =SUM(D21:O21) -> 4096.5 | R21: =P21-Q21 -> -4096.5
A22: 48016 | B22: 82 | C22: 18939 | D22: 962.5 | E22: 962.5 | F22: 1712.5 | G22: 962.5 | H22: 962.5 | I22: 1862.5 | J22: 1226.5 | K22: 2387.5 | L22: 962.5 | M22: 4462.5 | N22: 1512.5 | O22: 962.5 | Q22: =SUM(D22:O22) -> 18939 | R22: =P22-Q22 -> -18939
A23: 48030 | B23: 10 | C23: 1320 | D23: 0 | E23: 0 | F23: 1320 | G23: 0 | H23: 0 | I23: 0 | J23: 0 | K23: 0 | L23: 0 | M23: 0 | N23: 0 | O23: 0 | Q23: =SUM(D23:O23) -> 1320 | R23: =P23-Q23 -> -1320
A24: 48030 | B24: 30 | C24: 180 | D24: 0 | E24: 0 | F24: 180 | G24: 0 | H24: 0 | I24: 0 | J24: 0 | K24: 0 | L24: 0 | M24: 0 | N24: 0 | O24: 0 | Q24: =SUM(D24:O24) -> 180 | R24: =P24-Q24 -> -180
A25: 48030 | B25: 40 | C25: 1500 | D25: 0 | E25: 0 | F25: 1500 | G25: 0 | H25: 0 | I25: 0 | J25: 0 | K25: 0 | L25: 0 | M25: 0 | N25: 0 | O25: 0 | Q25: =SUM(D25:O25) -> 1500 | R25: =P25-Q25 -> -1500
A26: 48030 | B26: 50 | C26: 780 | D26: 0 | E26: 0 | F26: 780 | G26: 0 | H26: 0 | I26: 0 | J26: 0 | K26: 0 | L26: 0 | M26: 0 | N26: 0 | O26: 0 | Q26: =SUM(D26:O26) -> 780 | R26: =P26-Q26 -> -780
A27: 48030 | B27: 55 | C27: 0 | D27: 0 | E27: 0 | F27: 0 | G27: 0 | H27: 0 | I27: 0 | J27: 0 | K27: 0 | L27: 0 | M27: 0 | N27: 0 | O27: 0 | Q27: =SUM(D27:O27) -> 0 | R27: =P27-Q27 -> 0
A28: 48030 | B28: 82 | C28: 1140 | D28: 0 | E28: 0 | F28: 1140 | G28: 0 | H28: 0 | I28: 0 | J28: 0 | K28: 0 | L28: 0 | M28: 0 | N28: 0 | O28: 0 | Q28: =SUM(D28:O28) -> 1140 | R28: =P28-Q28 -> -1140
A29: 48035 | B29: 81 | C29: 1000 | D29: 0 | E29: 0 | F29: 1000 | G29: 0 | H29: 0 | I29: 0 | J29: 0 | K29: 0 | L29: 0 | M29: 0 | N29: 0 | O29: 0 | Q29: =SUM(D29:O29) -> 1000 | R29: =P29-Q29 -> -1000
A30: 48045 | B30: 81 | C30: 15522 | D30: 1256 | E30: 1306 | F30: 1306 | G30: 1306 | H30: 1306 | I30: 1306 | J30: 1306 | K30: 1306 | L30: 1306 | M30: 1306 | N30: 1256 | O30: 1256 | Q30: =SUM(D30:O30) -> 15522 | R30: =P30-Q30 -> -15522
A31: 48050 | B31: 10 | C31: 29160 | D31: 2430 | E31: 2430 | F31: 2430 | G31: 2430 | H31: 2430 | I31: 2430 | J31: 2430 | K31: 2430 | L31: 2430 | M31: 2430 | N31: 2430 | O31: 2430 | Q31: =SUM(D31:O31) -> 29160 | R31: =P31-Q31 -> -29160
A32: 48050 | B32: 30 | C32: 7620 | D32: 635 | E32: 635 | F32: 635 | G32: 635 | H32: 635 | I32: 635 | J32: 635 | K32: 635 | L32: 635 | M32: 635 | N32: 635 | O32: 635 | Q32: =SUM(D32:O32) -> 7620 | R32: =P32-Q32 -> -7620
A33: 48050 | B33: 40 | C33: 35340 | D33: 2945 | E33: 2945 | F33: 2945 | G33: 2945 | H33: 2945 | I33: 2945 | J33: 2945 | K33: 2945 | L33: 2945 | M33: 2945 | N33: 2945 | O33: 2945 | Q33: =SUM(D33:O33) -> 35340 | R33: =P33-Q33 -> -35340
A34: 48050 | B34: 50 | C34: 18300 | D34: 1525 | E34: 1525 | F34: 1525 | G34: 1525 | H34: 1525 | I34: 1525 | J34: 1525 | K34: 1525 | L34: 1525 | M34: 1525 | N34: 1525 | O34: 1525 | Q34: =SUM(D34:O34) -> 18300 | R34: =P34-Q34 -> -18300
A35: 48050 | B35: 55 | C35: 9780 | D35: 815 | E35: 815 | F35: 815 | G35: 815 | H35: 815 | I35: 815 | J35: 815 | K35: 815 | L35: 815 | M35: 815 | N35: 815 | O35: 815 | Q35: =SUM(D35:O35) -> 9780 | R35: =P35-Q35 -> -9780
A36: 48050 | B36: 82 | C36: 39240 | D36: 3270 | E36: 3270 | F36: 3270 | G36: 3270 | H36: 3270 | I36: 3270 | J36: 3270 | K36: 3270 | L36: 3270 | M36: 3270 | N36: 3270 | O36: 3270 | Q36: =SUM(D36:O36) -> 39240 | R36: =P36-Q36 -> -39240
A37: 48060 | B37: 10 | C37: 34356 | D37: 2389.666667 | E37: 2569.666667 | F37: 4739.666667 | G37: 2329.666667 | H37: 2969.666667 | I37: 2219.666667 | J37: 2189.666667 | K37: 1939.666667 | L37: 6359.666667 | M37: 2569.666667 | N37: 2489.666667 | O37: 1589.666667 | Q37: =SUM(D37:O37) -> 34356 | R37: =P37-Q37 -> -34356
A38: 48060 | B38: 30 | C38: 6510 | D38: 524.5 | E38: 474.5 | F38: 874.5 | G38: 502.5 | H38: 774.5 | I38: 224.5 | J38: 524.5 | K38: 424.5 | L38: 852.5 | M38: 524.5 | N38: 584.5 | O38: 224.5 | Q38: =SUM(D38:O38) -> 6510 | R38: =P38-Q38 -> -6510
A39: 48060 | B39: 40 | C39: 40350 | D39: 2084.166667 | E39: 2284.166667 | F39: 8634.166667 | G39: 2809.166667 | H39: 4004.166667 | I39: 2004.166667 | J39: 2854.166667 | K39: 2354.166667 | L39: 3959.166667 | M39: 4154.166667 | N39: 3204.166667 | O39: 2004.166667 | Q39: =SUM(D39:O39) -> 40350 | R39: =P39-Q39 -> -40350
A40: 48060 | B40: 50 | C40: 35942 | D40: 2766.166667 | E40: 2516.166667 | F40: 3716.166667 | G40: 2750.166667 | H40: 3216.166667 | I40: 2166.166667 | J40: 2416.166667 | K40: 2416.166667 | L40: 6950.166667 | M40: 2516.166667 | N40: 2346.166667 | O40: 2166.166667 | Q40: =SUM(D40:O40) -> 35942 | R40: =P40-Q40 -> -35942
A41: 48060 | B41: 55 | C41: 19742 | D41: 757.1666667 | E41: 1757.166667 | F41: 2657.166667 | G41: 1140.166667 | H41: 2647.166667 | I41: 1897.166667 | J41: 1197.166667 | K41: 997.1666667 | L41: 2490.166667 | M41: 2197.166667 | N41: 1307.166667 | O41: 697.1666667 | Q41: =SUM(D41:O41) -> 19742 | R41: =P41-Q41 -> -19742
A42: 48060 | B42: 82 | C42: 80708 | D42: 6075 | E42: 5475 | F42: 10827 | G42: 6577 | H42: 6525 | I42: 4725 | J42: 4775 | K42: 6975 | L42: 11127 | M42: 7877 | N42: 5775 | O42: 3975 | Q42: =SUM(D42:O42) -> 80708 | R42: =P42-Q42 -> -80708
A43: 48065 | B43: 10 | C43: 18840 | D43: 1282.5 | E43: 1332.5 | F43: 3132.5 | G43: 1982.5 | H43: 1832.5 | I43: 1132.5 | J43: 782.5 | K43: 982.5 | L43: 2632.5 | M43: 1332.5 | N43: 1632.5 | O43: 782.5 | Q43: =SUM(D43:O43) -> 18840 | R43: =P43-Q43 -> -18840
A44: 48065 | B44: 40 | C44: 18610 | D44: 682.5 | E44: 782.5 | F44: 2932.5 | G44: 2262.5 | H44: 1262.5 | I44: 1162.5 | J44: 1412.5 | K44: 762.5 | L44: 2062.5 | M44: 3412.5 | N44: 1112.5 | O44: 762.5 | Q44: =SUM(D44:O44) -> 18610 | R44: =P44-Q44 -> -18610
A45: 48065 | B45: 82 | C45: 27474 | D45: 2493.333333 | E45: 2593.333333 | F45: 2393.333333 | G45: 2726.666667 | H45: 2978.666667 | I45: 1826.666667 | J45: 1326.666667 | K45: 2451.666667 | L45: 3151.666667 | M45: 1726.666667 | N45: 2478.666667 | O45: 1326.666667 | Q45: =SUM(D45:O45) -> 27474 | R45: =P45-Q45 -> -27474
A46: 48070 | B46: 10 | C46: 23660 | D46: 0 | E46: 5600 | F46: 3100 | G46: 2250 | H46: 2250 | I46: 0 | J46: 1760 | K46: 0 | L46: 0 | M46: 3100 | N46: 5600 | O46: 0 | Q46: =SUM(D46:O46) -> 23660 | R46: =P46-Q46 -> -23660
A47: 48070 | B47: 30 | C47: 3240 | D47: 0 | E47: 500 | F47: 1000 | G47: 0 | H47: 0 | I47: 0 | J47: 240 | K47: 0 | L47: 0 | M47: 1000 | N47: 500 | O47: 0 | Q47: =SUM(D47:O47) -> 3240 | R47: =P47-Q47 -> -3240
A48: 48070 | B48: 40 | C48: 19700 | D48: 0 | E48: 3500 | F48: 3500 | G48: 0 | H48: 0 | I48: 0 | J48: 3200 | K48: 0 | L48: 0 | M48: 3500 | N48: 6000 | O48: 0 | Q48: =SUM(D48:O48) -> 19700 | R48: =P48-Q48 -> -19700
A49: 48070 | B49: 50 | C49: 11040 | D49: 0 | E49: 1000 | F49: 4000 | G49: 0 | H49: 0 | I49: 0 | J49: 1040 | K49: 0 | L49: 0 | M49: 4000 | N49: 1000 | O49: 0 | Q49: =SUM(D49:O49) -> 11040 | R49: =P49-Q49 -> -11040
A50: 48070 | B50: 55 | C50: 6560 | D50: 0 | E50: 1000 | F50: 2000 | G50: 0 | H50: 0 | I50: 0 | J50: 560 | K50: 0 | L50: 0 | M50: 2000 | N50: 1000 | O50: 0 | Q50: =SUM(D50:O50) -> 6560 | R50: =P50-Q50 -> -6560
A51: 48070 | B51: 82 | C51: 35500 | D51: 0 | E51: 4000 | F51: 4400 | G51: 0 | H51: 1500 | I51: 0 | J51: 1200 | K51: 0 | L51: 3000 | M51: 9200 | N51: 12200 | O51: 0 | Q51: =SUM(D51:O51) -> 35500 | R51: =P51-Q51 -> -35500
A52: 48075 | B52: 10 | C52: 9000 | D52: 0 | E52: 0 | F52: 1000 | G52: 1000 | H52: 0 | I52: 0 | J52: 2000 | K52: 2000 | L52: 1000 | M52: 1000 | N52: 1000 | O52: 0 | Q52: =SUM(D52:O52) -> 9000 | R52: =P52-Q52 -> -9000
A53: 48075 | B53: 40 | C53: 15500 | D53: 0 | E53: 0 | F53: 1500 | G53: 1500 | H53: 0 | I53: 0 | J53: 2750 | K53: 2750 | L53: 0 | M53: 1500 | N53: 1500 | O53: 4000 | Q53: =SUM(D53:O53) -> 15500 | R53: =P53-Q53 -> -15500
A54: 48075 | B54: 82 | C54: 18500 | D54: 0 | E54: 0 | F54: 1500 | G54: 4500 | H54: 0 | I54: 0 | J54: 2750 | K54: 2750 | L54: 0 | M54: 1500 | N54: 1500 | O54: 4000 | Q54: =SUM(D54:O54) -> 18500 | R54: =P54-Q54 -> -18500
A55: 48085 | B55: 81 | C55: 13500 | D55: 666.6666667 | E55: 666.6666667 | F55: 5666.666667 | G55: 666.6666667 | H55: 666.6666667 | I55: 666.6666667 | J55: 666.6666667 | K55: 666.6666667 | L55: 666.6666667 | M55: 1166.666667 | N55: 666.6666667 | O55: 666.6666667 | Q55: =SUM(D55:O55) -> 13500 | R55: =P55-Q55 -> -13500
A56: 48090 | B56: 10 | C56: 24500 | D56: 0 | E56: 0 | F56: 0 | G56: 0 | H56: 500 | I56: 8000 | J56: 8000 | K56: 4000 | L56: 0 | M56: 4000 | N56: 0 | O56: 0 | Q56: =SUM(D56:O56) -> 24500 | R56: =P56-Q56 -> -24500
A57: 48090 | B57: 30 | C57: 9100 | D57: 0 | E57: 0 | F57: 0 | G57: 200 | H57: 200 | I57: 4000 | J57: 4000 | K57: 500 | L57: 200 | M57: 0 | N57: 0 | O57: 0 | Q57: =SUM(D57:O57) -> 9100 | R57: =P57-Q57 -> -9100
A58: 48090 | B58: 40 | C58: 9500 | D58: 0 | E58: 0 | F58: 0 | G58: 0 | H58: 0 | I58: 2500 | J58: 2500 | K58: 3000 | L58: 0 | M58: 1500 | N58: 0 | O58: 0 | Q58: =SUM(D58:O58) -> 9500 | R58: =P58-Q58 -> -9500
A59: 48090 | B59: 50 | C59: 1500 | D59: 0 | E59: 0 | F59: 0 | G59: 0 | H59: 0 | I59: 500 | J59: 500 | K59: 500 | L59: 0 | M59: 0 | N59: 0 | O59: 0 | Q59: =SUM(D59:O59) -> 1500 | R59: =P59-Q59 -> -1500
A60: 48090 | B60: 55 | C60: 3000 | D60: 0 | E60: 0 | F60: 0 | G60: 0 | H60: 0 | I60: 1500 | J60: 1500 | K60: 0 | L60: 0 | M60: 0 | N60: 0 | O60: 0 | Q60: =SUM(D60:O60) -> 3000 | R60: =P60-Q60 -> -3000
A61: 48090 | B61: 82 | C61: 2500 | D61: 0 | E61: 0 | F61: 0 | G61: 0 | H61: 0 | I61: 2500 | J61: 0 | K61: 0 | L61: 0 | M61: 0 | N61: 0 | O61: 0 | Q61: =SUM(D61:O61) -> 2500 | R61: =P61-Q61 -> -2500
A62: 88205 | B62: 10 | C62: -4750 | D62: 0 | E62: 0 | F62: 0 | G62: -1750 | H62: 0 | I62: 0 | J62: -1250 | K62: 0 | L62: 0 | M62: 0 | N62: -1750 | O62: 0 | Q62: =SUM(D62:O62) -> -4750 | R62: =P62-Q62 -> 4750
A63: 88205 | B63: 40 | C63: -5145 | D63: 0 | E63: 0 | F63: 0 | G63: -1075 | H63: 0 | I63: 0 | J63: -1095 | K63: 0 | L63: 0 | M63: 0 | N63: -2975 | O63: 0 | Q63: =SUM(D63:O63) -> -5145 | R63: =P63-Q63 -> 5145
A64: 88205 | B64: 82 | C64: -8677 | D64: 0 | E64: 0 | F64: 0 | G64: -2500 | H64: 0 | I64: 0 | J64: -2276 | K64: 0 | L64: 0 | M64: 0 | N64: -3901 | O64: 0 | Q64: =SUM(D64:O64) -> -8677 | R64: =P64-Q64 -> 8677
A65: 88206 | B65: 10 | C65: -6440 | D65: 0 | E65: 0 | F65: 0 | G65: -2040 | H65: 0 | I65: 0 | J65: -1325 | K65: 0 | L65: 0 | M65: 0 | N65: -3075 | O65: 0 | Q65: =SUM(D65:O65) -> -6440 | R65: =P65-Q65 -> 6440
A66: 88206 | B66: 30 | C66: -258 | D66: 0 | E66: 0 | F66: 0 | G66: -150 | H66: 0 | I66: 0 | J66: -39 | K66: 0 | L66: 0 | M66: 0 | N66: -69 | O66: 0 | Q66: =SUM(D66:O66) -> -258 | R66: =P66-Q66 -> 258
A67: 88206 | B67: 40 | C67: -7660 | D67: 0 | E67: 0 | F67: 0 | G67: -3250 | H67: 0 | I67: 0 | J67: -1307.5 | K67: 0 | L67: 0 | M67: 0 | N67: -3102.5 | O67: 0 | Q67: =SUM(D67:O67) -> -7660 | R67: =P67-Q67 -> 7660
A68: 88206 | B68: 50 | C68: -9350 | D68: 0 | E68: 0 | F68: 0 | G68: -2750 | H68: 0 | I68: 0 | J68: -2100 | K68: 0 | L68: 0 | M68: 0 | N68: -4500 | O68: 0 | Q68: =SUM(D68:O68) -> -9350 | R68: =P68-Q68 -> 9350
A69: 88206 | B69: 55 | C69: -5508 | D69: 0 | E69: 0 | F69: 0 | G69: -1550 | H69: 0 | I69: 0 | J69: -1781.5 | K69: 0 | L69: 0 | M69: 0 | N69: -2176.5 | O69: 0 | Q69: =SUM(D69:O69) -> -5508 | R69: =P69-Q69 -> 5508
A70: 88206 | B70: 82 | C70: -25204 | D70: 0 | E70: 0 | F70: 0 | G70: -7401 | H70: 0 | I70: 0 | J70: -5426 | K70: 0 | L70: 0 | M70: 0 | N70: -12377 | O70: 0 | Q70: =SUM(D70:O70) -> -25204 | R70: =P70-Q70 -> 25204

Sheet Pivot Table_marketing_2023_1
A1: Sum - Summe | B1: Betrieb Nr
A2: Konto Nr | B2: 10 | C2: 30 | D2: 40 | E2: 50 | F2: 55 | G2: 81 | H2: 82 | I2: Total Result
A3: 48001 | B3: 18000 | I3: 18000
A4: 48005 | G4: 23898 | I4: 23898
A5: 48010 | B5: 1820 | C5: 300 | D5: 1500 | E5: 780 | F5: 0 | H5: 1140 | I5: 5540
A6: 48011 | G6: 1000 | I6: 1000
A7: 48015 | B7: 103272.5 | C7: 11777.2 | D7: 56457.5 | E7: 42140 | F7: 21665 | H7: 79420 | I7: 314732.2
A8: 48016 | B8: 15491 | C8: 1648.5 | D8: 13737.5 | E8: 8343.5 | F8: 4096.5 | H8: 18939 | I8: 62256
A9: 48030 | B9: 1320 | C9: 180 | D9: 1500 | E9: 780 | F9: 0 | H9: 1140 | I9: 4920
A10: 48035 | G10: 1000 | I10: 1000
A11: 48045 | G11: 15522 | I11: 15522
A12: 48050 | B12: 29160 | C12: 7620 | D12: 35340 | E12: 18300 | F12: 9780 | H12: 39240 | I12: 139440
A13: 48060 | B13: 34356 | C13: 6510 | D13: 40350 | E13: 35942 | F13: 19742 | H13: 80708 | I13: 217608
A14: 48065 | B14: 18840 | D14: 18610 | H14: 27474 | I14: 64924
A15: 48070 | B15: 23660 | C15: 3240 | D15: 19700 | E15: 11040 | F15: 6560 | H15: 35500 | I15: 99700
A16: 48075 | B16: 9000 | D16: 15500 | H16: 18500 | I16: 43000
A17: 48085 | G17: 13500 | I17: 13500
A18: 48090 | B18: 24500 | C18: 9100 | D18: 9500 | E18: 1500 | F18: 3000 | H18: 2500 | I18: 50100
A19: 88205 | B19: -4750 | D19: -5145 | H19: -8677 | I19: -18572
A20: 88206 | B20: -6440 | C20: -258 | D20: -7660 | E20: -9350 | F20: -5508 | H20: -25204 | I20: -54420
A21: Total Result | B21: 268229.5 | C21: 40117.7 | D21: 199390 | E21: 109475.5 | F21: 59335.5 | G21: 54920 | H21: 270680 | I21: 1002148.2
